[Event "SVK ECo-C Extraliga 2021-22"]
[Site "Slovakia"]
[Date "2022.05.08"]
[Round "8.6"]
[White "Karas, Marek"]
[Black "Gazik, Igor"]
[Result "1/2-1/2"]
[ECO "A45"]
[WhiteElo "2292"]
[BlackElo "2229"]
[Annotator "TA"]
[PlyCount "75"]
[EventDate "2021.10.21"]
[EventType "team-tourn"]
[EventCountry "SVK"]
[SourceTitle "playchess.com"]
[Source "ChessBase"]
[SourceQuality "1"]
[TimeControl "40/5400+30:1800+30"]

{[%evp 12,75,34,35,45,19,26,31,24,12,32,25,22,19,37,22,28,-1,7,-19,-24,-23,-14,-13,-16,0,18,0,0,0,0,-31,-18,-17,22,0,0,0,0,0,0,0,0,0,0,0,0,0,0,0,0,0,0,0,0,0,0,0,0,0,0,0,0,0,0,0]} 1. d4 {[%emt 0:00:04]} Nf6 {[%emt 0:00:09]} 2. Bf4 {[%emt 0:00:07]} g6 {[%emt 0:01:05]} 3. Nc3 {[%emt 0:00:06]} d6 {[%emt 0:18:47]} 4. e4 {[%emt 0:00:07]} Bg7 {[%emt 0:00:14]} 5. Qd2 {[%emt 0:00:11]} O-O {[%emt 0:01:20]} 6. Nf3 {[%emt 0:01:38]} Bg4 {[%emt 0:09:24]} 7. Be2 {[%emt 0:03:30] 7.0-0-0 deserves study.} Nbd7 {[%emt 0:07:45] B08: Pirc Defence: Classical System.} 8. Bh6 {[%emt 0:04:42]} e5 {[%emt 0:01:09]} 9. Bxg7 {[%emt 0:01:02]} Kxg7 {[%emt 0:00:02] White is slightly better.} 10. O-O-O {[%emt 0:01:16]} c6 {[%emt 0:03:53]} 11. h3 {[%emt 0:06:08]} Bxf3 {[%emt 0:03:22]} 12. Bxf3 {[%emt 0:00:10]} b5 {[%emt 0:05:58]} 13. g4 {[%emt 0:01:17]} Nb6 $1 {[%emt 0:00:37]} 14. dxe5 {[%emt 0:09:16]} dxe5 {[%emt 0:00:07] [#]} 15. Qd6 $146 {[%emt 0:03:24]} ({Predecessor:} 15. Qxd8 Rfxd8 16. Ne2 Kf8 17. b3 {½-½ (17) Lerner,K (2549)-Kantsler,B (2474) Herzliya 2009}) 15... Qxd6 {[%emt 0:04:16]} 16. Rxd6 {[%emt 0:00:07]} Rfc8 {[%emt 0:00:02]} 17. g5 {[%emt 0:01:20]} Ne8 {[%emt 0:00:16]} 18. Rd3 {[%emt 0:00:32]} Kf8 {[%emt 0:00:09]} 19. Bg4 {[%emt 0:04:08]} Rd8 {[%emt 0:08:13]} 20. Rhd1 {[%emt 0:06:17]} Ke7 {[%emt 0:00:21]} 21. f4 {[%emt 0:09:56]} exf4 {[%emt 0:07:58]} 22. Ne2 {[%emt 0:00:18] The position is equal.} Rd6 {[%emt 0:04:19]} (22... Nc4 $5 {[%cal Rc4e5]}) 23. Rxd6 {[%emt 0:09:12]} Nxd6 {[%emt 0:00:01]} 24. Nd4 {[%emt 0:00:40]} Kf8 {[%emt 0:05:02]} (24... Nxe4 $2 25. Re1 $18) 25. e5 {[%emt 0:05:26]} Ndc4 {[%emt 0:06:29]} 26. Nxc6 {[%emt 0:03:00]} Re8 {[%emt 0:00:06]} 27. Rf1 {[%emt 0:14:58]} Nxe5 {[%emt 0:03:08]} 28. Nxa7 {[%emt 0:00:10]} Nxg4 {[%emt 0:05:02]} 29. hxg4 $11 {[%emt 0:00:01][%mdl 4096] Endgame KRN-KRN} Re5 {[%emt 0:00:52]} 30. Rxf4 {[%emt 0:00:40]} Rxg5 {[%emt 0:00:52]} 31. Rb4 {[%emt 0:04:54]} Nc4 {[%emt 0:00:22]} 32. b3 {[%emt 0:02:17]} ({Of course not} 32. Nxb5 Rxg4 33. Nc3 h5 34. Rb8+ Kg7 $17) 32... Nd6 {[%emt 0:00:02]} 33. a4 {[%emt 0:03:09]} bxa4 {[%emt 0:00:03]} 34. bxa4 {[%emt 0:00:24]} h5 {[%emt 0:01:07]} 35. gxh5 {[%emt 0:00:09]} gxh5 {[%emt 0:00:04]} 36. Nb5 {[%emt 0:01:57]} Ke7 {[%emt 0:00:09]} 37. Kd2 {[%emt 0:03:24]} Rg4 {[%emt 0:02:31]} 38. Rxg4 {[%emt 0:00:35] Weighted Error Value: White=0.05 (flawless) /Black=0.03 (flawless)} 1/2-1/2

[Event "SVK ECo-C Extraliga 2021-22"]
[Site "Slovakia"]
[Date "2022.05.08"]
[Round "8.6"]
[White "Zetocha, Claudiu"]
[Black "Klemanic, Emil"]
[Result "1/2-1/2"]
[ECO "A04"]
[WhiteElo "2287"]
[BlackElo "2104"]
[Annotator "TA"]
[PlyCount "36"]
[EventDate "2021.10.21"]
[EventType "team-tourn"]
[EventCountry "SVK"]
[SourceTitle "playchess.com"]
[Source "ChessBase"]
[SourceQuality "1"]
[TimeControl "40/5400+30:1800+30"]

{[%evp 9,36,17,28,20,27,19,33,31,33,25,25,31,25,31,43,20,24,17,20,10,20,11,16,12,33,0,24,20,20]} 1. Nf3 {[%emt 0:00:26]} d6 {[%emt 0:00:34]} 2. d4 {[%emt 0:06:13]} Nf6 {[%emt 0:00:13]} 3. b3 {[%emt 0:12:22]} g6 {[%emt 0:00:54]} 4. Bb2 {[%emt 0:00:33]} Bg7 {[%emt 0:00:04]} 5. g3 {[%emt 0:04:25]} b6 {[%emt 0:02:13]} 6. Bg2 {[%emt 0:01:20] A49: 1 d4 Nf6 2 Nf3 g6 3 g3: Anti-King's Indian systems.} Bb7 {[%emt 0:00:05]} 7. O-O {[%emt 0:01:25]} Nbd7 {[%emt 0:00:07]} 8. c4 {[%emt 0:01:25] White is slightly better.} e6 {[%emt 0:00:22]} 9. Nc3 {[%emt 0:04:13]} Ne4 {[%emt 0:02:51]} 10. Qc2 {[%emt 0:01:35]} Nxc3 {[%emt 0:00:50]} 11. Bxc3 {[%emt 0:00:15]} Nf6 {[%emt 0:00:43]} 12. Rfe1 {[%emt 0:04:06]} Be4 {[%emt 0:04:54]} 13. Qb2 {[%emt 0:00:20]} O-O {[%emt 0:00:37] [#]} 14. Bf1 $146 {[%emt 0:01:29]} ({Predecessor:} 14. Rac1 Qe7 15. Bf1 Bb7 16. Nd2 d5 17. c5 b5 18. c6 Bxc6 19. Ba5 Bd7 20. Bxc7 {1-0 (50) Teske,H (2488)-Villar Reymundo,J (2214) Collado Villalba 2017}) 14... Bxf3 {[%emt 0:07:37]} 15. exf3 {[%emt 0:00:21][%cal Od4d5]} d5 {[%emt 0:00:03]} 16. a4 {[%emt 0:12:34]} Qd7 {[%emt 0:09:21]} 17. a5 c6 18. axb6 axb6 {Weighted Error Value: White=0.08 (flawless) /Black=0.06 (flawless)} 1/2-1/2

[Event "SVK ECo-C Extraliga 2021-22"]
[Site "Slovakia"]
[Date "2022.05.08"]
[Round "8.6"]
[White "Kostelny, Jozef"]
[Black "Brnusak, Tomas"]
[Result "1-0"]
[ECO "A81"]
[WhiteElo "2123"]
[BlackElo "2212"]
[Annotator "TA"]
[PlyCount "61"]
[EventDate "2021.10.21"]
[EventType "team-tourn"]
[EventCountry "SVK"]
[SourceTitle "playchess.com"]
[Source "ChessBase"]
[SourceQuality "1"]
[TimeControl "40/5400+30:1800+30"]

{[%evp 13,61,31,35,24,40,18,47,33,60,2,44,0,37,28,35,8,30,27,29,30,20,6,36,0,39,0,108,32,96,71,115,111,224,114,275,163,307,295,309,295,870,849,1224,1195,2020,1579,1718,1661,29989,29990]} 1. d4 {[%emt 0:00:04]} f5 {[%emt 0:00:05]} 2. g3 {[%emt 0:04:37]} Nf6 {[%emt 0:00:19]} 3. Bg2 {[%emt 0:00:05]} d6 {[%emt 0:00:09]} 4. Nf3 {[%emt 0:00:16]} g6 {[%emt 0:00:06]} 5. O-O {[%emt 0:00:06]} Bg7 {[%emt 0:00:02]} 6. b3 {[%emt 0:00:37]} O-O {[%emt 0:00:06]} 7. Bb2 {[%emt 0:00:15]} e6 {[%emt 0:00:48]} 8. c4 {[%emt 0:00:44] A81: Dutch Defence: 2 g3.} Qe7 {[%emt 0:00:34]} 9. Qc2 {[%emt 0:03:41]} Nc6 {[%emt 0:05:59]} 10. Nc3 {[%emt 0:11:48] White is slightly better.} Nb4 {[%emt 0:15:14]} 11. Qb1 {[%emt 0:03:51] [#]} (11. Qd2 $14) 11... a5 $146 {[%emt 0:01:15]} ({Predecessor:} 11... e5 12. a3 Na6 13. dxe5 dxe5 14. e3 e4 15. Nd4 Rd8 16. Qc2 c6 17. Rfd1 Be6 18. Nxe6 Qxe6 {½-½ (45) Zaruba,A-Jernek,P Czech Republic 1995}) 12. Rd1 {[%emt 0:06:28]} c6 {[%emt 0:04:04]} 13. a3 {[%emt 0:06:29]} Na6 {[%emt 0:00:17]} 14. Na4 {[%emt 0:00:09]} (14. b4 $5) 14... b5 {[%emt 0:03:58]} 15. Nb6 $36 {[%emt 0:02:26][%mdl 2048] White has good play.} Rb8 {[%emt 0:00:10]} 16. Nxc8 {[%emt 0:00:25]} Rfxc8 {[%emt 0:00:11]} 17. Qc2 {[%emt 0:04:37]} Ne4 {[%emt 0:08:43]} 18. Nd2 {[%emt 0:05:48]} (18. c5 {keeps more tension.} dxc5 19. Ne5 a4 20. bxa4 bxa4 21. Nc4) 18... Nxd2 {[%emt 0:07:02]} 19. Rxd2 {[%emt 0:01:41]} h5 {[%emt 0:11:37] [#]} (19... c5 $11) 20. Rc1 {[%emt 0:02:15]} ({White should play} 20. e4 $1 $16) 20... b4 {[%emt 0:01:43]} ({Better is} 20... Qb7 $14) 21. a4 $16 {[%emt 0:05:31]} h4 {[%emt 0:01:06]} 22. e4 {[%emt 0:04:12]} f4 {[%emt 0:02:24]} (22... hxg3 $16 23. hxg3 Qd7) 23. e5 {[%emt 0:04:44]} (23. gxf4 $18 {Black must now prevent e5.} Qf7 24. e5 dxe5 25. fxe5) 23... hxg3 $2 {[%emt 0:03:45] A mistake that costs the game.} (23... dxe5 $16 24. dxe5 (24. Qxg6 Qf7 $16) 24... fxg3) 24. Qxg6 {[%emt 0:02:30]} ({Don't do} 24. fxg3 $6 dxe5 25. gxf4 (25. Qxg6 Qf7 $16) (25. dxe5 fxg3 26. Qxg6 gxh2+ 27. Kh1 Nc5 $16) 25... exd4 $16) (24. exd6 $142 gxh2+ 25. Kh1 Qxd6 26. Qxg6) 24... gxh2+ {[%emt 0:00:05]} (24... dxe5 $142 25. Bh3 (25. fxg3 Qf7 $16) (25. dxe5 Nc5 $16) (25. hxg3 Qf7 $16) 25... Re8) 25. Kxh2 $18 {[%emt 0:01:27]} dxe5 {[%emt 0:04:42]} 26. Bh3 {[%emt 0:01:28]} ({Weaker is} 26. dxe5 Rd8 27. Rd6 Qh4+ 28. Kg1 Nc5 $14) 26... Qh4 $2 {[%emt 0:01:35]} (26... Kf8 27. Bxe6 Re8) 27. Rg1 {[%emt 0:07:24][%csl Gg1][%cal Rg6g7] [#]} Rc7 {[%emt 0:02:59]} 28. d5 {[%emt 0:05:36] And now Bxe5 would win.} Kh8 {[%emt 0:01:04]} 29. Rg4 {[%emt 0:04:02]} Qf6 {[%emt 0:00:51]} 30. Qh5+ {[%emt 0:00:29]} Kg8 {[%emt 0:00:53]} 31. Bxe5 {[%emt 0:00:12] Weighted Error Value: White=0.36/Black=0.93} 1-0

[Event "SVK ECo-C Extraliga 2021-22"]
[Site "Slovakia"]
[Date "2022.05.08"]
[Round "8.7"]
[White "Jacko, Vladimir"]
[Black "Vojtek, Vladimir"]
[Result "1-0"]
[ECO "B92"]
[WhiteElo "2379"]
[BlackElo "2288"]
[Annotator "TA"]
[PlyCount "97"]
[EventDate "2021.10.21"]
[EventType "team-tourn"]
[EventCountry "SVK"]
[SourceTitle "playchess.com"]
[Source "ChessBase"]
[SourceQuality "1"]
[TimeControl "40/5400+30:1800+30"]

{[%evp 17,97,0,12,14,8,11,38,44,33,24,36,36,46,30,50,47,48,63,41,44,54,59,53,52,85,68,73,88,83,58,101,80,84,86,84,37,74,32,62,77,151,117,177,172,306,308,297,302,593,289,750,775,754,790,827,800,795,790,856,826,883,861,1183,1174,1233,1233,2547,1206,4926,4795,29984,29985,29983,29983,29990,29986,29986,29987,29990,29991,29991,29992]} 1. e4 {[%emt 0:00:04]} c5 {[%emt 0:00:20]} 2. Nf3 {[%emt 0:02:11]} d6 {[%emt 0:00:06]} 3. d4 {[%emt 0:00:19]} cxd4 {[%emt 0:00:04]} 4. Nxd4 {[%emt 0:00:03]} Nf6 {[%emt 0:00:09]} 5. Nc3 {[%emt 0:00:19]} a6 {[%emt 0:00:04]} 6. Be2 {[%emt 0:07:04]} e5 {[%emt 0:01:04]} 7. Nb3 {[%emt 0:01:27]} Be7 {[%emt 0:00:10]} 8. O-O {[%emt 0:09:46]} O-O {[%emt 0:00:36]} 9. a4 {[%emt 0:00:21]} Be6 {[%emt 0:02:29]} 10. Bf3 {[%emt 0:00:18] B92: Sicilian Najdorf: 6 Be2.} Nbd7 {[%emt 0:04:24]} 11. a5 {[%emt 0:02:49]} b5 {[%emt 0:04:48]} 12. axb6 $1 {[%emt 0:13:33] White is slightly better.} Nxb6 {[%emt 0:02:16]} 13. Na5 {[%emt 0:00:30]} Qc7 {[%emt 0:03:55]} 14. Re1 {[%emt 0:07:43] [#]} Rac8 $146 {[%emt 0:18:50]} ({Predecessor:} 14... Nc4 15. Nxc4 Bxc4 16. Bd2 Qb7 17. b3 Be6 18. Ra2 Rfc8 19. Qe2 Bd8 20. Na4 Rc6 {1-0 (57) Areshchenko,A (2650)-Nepomniachtchi,I (2634) Dagomys 2008}) 15. Be3 {[%emt 0:12:11]} Nc4 {[%emt 0:16:33]} 16. Nxc4 {[%emt 0:00:30]} Bxc4 {[%emt 0:00:05]} 17. Qd2 {[%emt 0:04:03]} h6 {[%emt 0:05:17]} 18. Rec1 {[%emt 0:07:42]} Qb7 {[%emt 0:03:24]} 19. b3 {[%emt 0:04:15]} Be6 {[%emt 0:00:53]} 20. Qd3 {[%emt 0:02:53]} Rfd8 {[%emt 0:19:40]} 21. Nd5 {[%emt 0:02:44]} Bxd5 {[%emt 0:02:13]} 22. exd5 {[%emt 0:00:02]} Ra8 {[%emt 0:00:43]} 23. Ra4 {[%emt 0:06:26]} Rdc8 {[%emt 0:05:17]} 24. Rca1 {[%emt 0:01:24]} Bd8 {[%emt 0:02:43]} 25. h3 {[%emt 0:05:45]} (25. Rxa6 e4 26. Bxe4 Nxe4 27. Rxa8 Rxa8 28. Rxa8 Qxa8 $17) 25... a5 {[%emt 0:00:30]} 26. Bd2 {[%emt 0:01:45]} (26. c4 $16) 26... Qe7 {[%emt 0:02:41]} 27. Be4 {[%emt 0:02:10]} (27. Bxa5 Bxa5 28. Rxa5 Rxa5 29. Rxa5 e4 $19) 27... Nxe4 {[%emt 0:02:13]} 28. Qxe4 {[%emt 0:00:08][%cal Rd2a5]} Qc7 {[%emt 0:00:40] Black is on the road to losing.} (28... Bb6 $142) 29. R1a2 {[%emt 0:00:47] 0x0.00288ee9dc17dp-1022s more active pieces.} Qc5 {[%emt 0:00:56]} (29... Qb7 $16) 30. b4 {[%emt 0:00:54][%cal Bb3b4,Bb4c5,Bc5c6][%mdl 32]} f5 {[%emt 0:00:56]} (30... Qb5 {is a better defense.} 31. bxa5 Qb1+ 32. Kh2 Qf1) 31. bxc5 $18 {[%emt 0:01:55]} fxe4 {[%emt 0:00:01]} 32. c6 {[%emt 0:00:14]} (32. Bxa5 Rxc5 33. Bb4 (33. Bxd8 Rxd8 34. c4 Rdc8 $14) 33... Rxa4 34. Rxa4 Rc4 $16) (32. cxd6 Ra6 33. Rxe4 Rxd6 $18) 32... Bb6 {[%emt 0:00:41]} (32... Ra7 {was necessary.} 33. c4 (33. Bxa5 Rca8 $14) (33. Rxe4 Bb6 $18) 33... Kf7) 33. Be3 {[%emt 0:02:37]} (33. Bxa5 $142 Bc5 34. Bb4 Rxa4 35. Rxa4 Bxb4 36. Rxb4) 33... Rab8 {[%emt 0:01:17]} (33... Bc7 34. Rxe4 Kf8) 34. Bxb6 {[%emt 0:00:23]} Rxb6 {[%emt 0:00:00]} 35. Rxa5 {[%emt 0:00:09][%mdl 4096] Endgame KRR-KRR} Kh7 {[%emt 0:00:55]} 36. Ra8 {[%emt 0:00:48]} Rc7 {[%emt 0:00:45]} 37. Rd8 {[%emt 0:00:24]} Rb1+ {[%emt 0:00:22]} 38. Kh2 {[%emt 0:00:35]} Rf7 {[%emt 0:00:57]} 39. Rxd6 {[%emt 0:01:19] [#] Rd7 is the strong threat.} e3 {[%emt 0:00:28]} 40. fxe3 {[%emt 0:00:29]} h5 {[%emt 0:00:04]} 41. Ra4 {[%emt 0:12:44]} Rd1 {[%emt 0:01:25]} 42. Re4 {[%emt 0:04:44]} g6 {[%emt 0:03:07]} 43. Rxe5 {[%emt 0:01:21] [#] Threatening mate with Rd7.} Rf2 {[%emt 0:00:06]} 44. Re7+ {[%emt 0:02:58] White mates.} Kh6 {[%emt 0:00:15]} 45. Ree6 {[%emt 0:00:10]} Kg5 {[%emt 0:01:31]} 46. Rxg6+ {[%emt 0:00:24]} Kh4 {[%emt 0:00:01]} 47. Rgf6 {[%emt 0:02:20]} ({Inferior is} 47. Rde6 Rh1+ 48. Kxh1 Rf1+ 49. Kh2 Rh1+ 50. Kxh1 $11) 47... Rxd5 {[%emt 0:03:37]} 48. Rf4+ {[%emt 0:00:31]} Rxf4 {[%emt 0:00:17]} 49. g3+ {[%emt 0:00:04] Weighted Error Value: White=0.18 (very precise) /Black=0.60} 1-0

[Event "SVK ECo-C Extraliga 2021-22"]
[Site "Slovakia"]
[Date "2022.05.08"]
[Round "8.7"]
[White "VladimirJacko"]
[Black "Vojtek, Vladimir"]
[Result "*"]
[ECO "B92"]
[WhiteElo "2379"]
[BlackElo "2287"]
[Annotator "TA"]
[PlyCount "38"]
[EventDate "2021.10.21"]
[EventType "team-tourn"]
[EventCountry "SVK"]
[SourceTitle "playchess.com"]
[Source "ChessBase"]
[SourceQuality "1"]
[TimeControl "40/5400+30:1800+30"]

{[%evp 13,14,15,14]} 1. e4 {[%emt 0:00:04]} c5 {[%emt 0:00:20]} 2. Nf3 {[%emt 0:02:11]} d6 {[%emt 0:00:06]} 3. d4 {[%emt 0:00:19]} cxd4 {[%emt 0:00:04]} 4. Nxd4 {[%emt 0:00:03]} Nf6 {[%emt 0:00:09]} 5. Nc3 {[%emt 0:00:19]} a6 {[%emt 0:00:04]} 6. Be2 {[%emt 0:07:04]} e5 {[%emt 0:01:04]} 7. Nb3 {[%emt 0:01:27]} Be7 {[%emt 0:00:10] [#]} {Predecessor:} 8. O-O $146 {B92: Sicilian Najdorf: 6 Be2.} O-O 9. Kh1 b6 10. f3 Bb7 11. Be3 b5 12. a4 b4 13. Nd5 Nxd5 14. exd5 Nd7 15. c4 a5 16. f4 Bf6 17. Qd2 Re8 18. fxe5 Bxe5 19. Nd4 Nc5 {1-0 (92) Alekseenko,K (2698)-Vachier Lagrave,M (2758) Chess.com INT 2022} *

[Event "SVK ECo-C Extraliga 2021-22"]
[Site "Slovakia"]
[Date "2022.05.08"]
[Round "8.7"]
[White "Maslikova, Veronika"]
[Black "Gasa, Andrej"]
[Result "1-0"]
[ECO "B50"]
[WhiteElo "2226"]
[BlackElo "2153"]
[Annotator "TA"]
[PlyCount "119"]
[EventDate "2021.10.21"]
[EventType "team-tourn"]
[EventCountry "SVK"]
[SourceTitle "playchess.com"]
[Source "ChessBase"]
[SourceQuality "1"]
[TimeControl "40/5400+30:1800+30"]

{[%evp 9,119,7,14,7,11,0,24,0,0,-16,0,-23,27,17,15,3,24,10,33,40,42,36,75,12,86,36,61,56,68,74,79,59,74,70,60,23,41,-22,-25,-30,-22,-12,0,-16,-23,-52,-60,-86,-97,-114,-105,-183,0,5,5,6,5,8,30,34,89,99,93,97,112,108,105,112,105,105,123,62,135,107,114,118,130,129,219,219,211,207,249,266,284,253,266,166,167,162,164,148,386,372,368,339,323,333,323,200,300,291,1225,1194,697,693,1306,1168,1665,1329,29981,1088]} 1. e4 {[%emt 0:00:04]} c5 {[%emt 0:00:10]} 2. Nf3 {[%emt 0:00:13]} d6 {[%emt 0:00:07]} 3. d3 {[%emt 0:01:26]} Nc6 {[%emt 0:00:41]} 4. g3 {[%emt 0:00:58]} e5 {[%emt 0:03:07]} 5. Bg2 {[%emt 0:01:21]} Be7 {[%emt 0:00:06]} 6. O-O {[%emt 0:01:09] B50: Sicilian: 2...d6, Miscellaneous.} Nf6 {[%emt 0:00:43]} 7. c3 {[%emt 0:04:23]} h6 {[%emt 0:01:34]} 8. Qe2 {[%emt 0:07:32] [#] White has an edge.} Be6 $146 {[%emt 0:05:56]} ({Predecessor:} 8... Nh7 9. Be3 Bg4 10. h3 Bd7 11. Nbd2 Ng5 12. Kh2 Ne6 13. Rad1 g5 14. Nb3 h5 {0-1 (37) Rosenlund,T-Poulsen,A Copenhagen 1974}) 9. a4 {[%emt 0:03:17]} Qc8 {[%emt 0:04:12]} 10. Bd2 {[%emt 0:06:35]} Bg4 {[%emt 0:01:13]} (10... O-O $142) 11. Na3 $11 {[%emt 0:08:07]} O-O {[%emt 0:03:05]} 12. Nc4 {[%emt 0:06:28]} Be6 {[%emt 0:14:30]} 13. Rfc1 {[%emt 0:14:27]} Qd7 {[%emt 0:07:23]} 14. b4 {[%emt 0:04:49]} cxb4 {[%emt 0:00:54]} 15. cxb4 {[%emt 0:00:03]} Bg4 {[%emt 0:00:08]} 16. Ne3 {[%emt 0:02:10]} (16. Bc3 $16) 16... Bh5 {[%emt 0:13:13]} (16... Nd4 $11 17. Qd1 Bh5) 17. Nf5 {[%emt 0:13:31]} ({White should play} 17. Bc3 $16) 17... d5 {[%emt 0:10:44]} 18. b5 {[%emt 0:01:12]} Nd4 {[%emt 0:02:20]} 19. N5xd4 {[%emt 0:00:46][%cal Of3e5]} dxe4 {[%emt 0:00:17] [#]} 20. dxe4 $1 {[%emt 0:00:43]} exd4 {[%emt 0:00:04]} 21. e5 {[%emt 0:01:21]} d3 {[%emt 0:02:31]} 22. Qe1 {[%emt 0:01:40]} Nd5 {[%emt 0:01:17]} 23. Qe4 {[%emt 0:02:16]} ({Better is} 23. Nd4 $14) 23... Bg6 {[%emt 0:00:34]} 24. Qd4 {[%emt 0:00:04]} Rfd8 $1 {[%emt 0:00:28]} 25. Nh4 {[%emt 0:01:15]} Bxh4 {[%emt 0:01:28]} 26. Qxh4 {[%emt 0:00:03]} Ne7 {[%emt 0:03:27]} 27. Bh3 {[%emt 0:02:54] This bishop pair is nice.} Bf5 {[%emt 0:01:07]} 28. Bxf5 {[%emt 0:03:23]} Nxf5 {[%emt 0:00:09]} 29. Qe4 {[%emt 0:00:16]} Nd4 $1 {[%emt 0:05:12]} 30. Rc4 {[%emt 0:02:55]} (30. Qxd3 $2 Qg4 31. Kg2 Nf5 $19) (30. Rd1 $17 {was called for.}) 30... Qd5 $2 {[%emt 0:05:43]} (30... Rac8 $1 $19 {[%cal Rc8c4]} 31. Rxc8 Qxc8) 31. Qxd5 {[%emt 0:00:03]} Rxd5 {[%emt 0:00:02]} 32. Kg2 {[%emt 0:00:18] Inhibits Nf3.} Nb3 {[%emt 0:02:47]} 33. Rd1 {[%emt 0:00:24]} Rxe5 {[%emt 0:00:53]} 34. Be3 {[%emt 0:03:53]} Na5 {[%emt 0:06:06]} (34... Rd5 $14) 35. Rd4 $1 $16 {[%emt 0:01:10]} b6 {[%emt 0:01:26]} 36. R1xd3 {[%emt 0:00:22]} Re7 {[%emt 0:00:12]} 37. Bd2 {[%emt 0:01:32]} Nb7 {[%emt 0:00:24]} 38. Bb4 {[%emt 0:00:09]} Rc7 {[%emt 0:00:06]} 39. Rd7 {[%emt 0:02:01]} Rac8 {[%emt 0:00:01]} 40. R3d5 {[%emt 0:01:05] White is more active.} (40. h4 $16) 40... g6 {[%emt 0:02:12]} ({Black should try} 40... Na5 $1 $14) 41. Re7 {[%emt 0:32:59]} Rxe7 {[%emt 0:32:59]} 42. Bxe7 {[%emt 0:00:09][%mdl 4096] Endgame Strongly threatening Rd7. KRB-KRN} Rc7 {[%emt 0:00:06] Against Rd7} 43. Bf6 {[%emt 0:01:11]} g5 {[%emt 0:00:54]} (43... h5 $16) 44. h4 $18 {[%emt 0:00:00]} gxh4 {[%emt 0:00:00]} 45. gxh4 {[%emt 0:00:00][%cal Bg3h4,Bh4h5][%mdl 32]} ({Not} 45. Bxh4 Kg7 $11) 45... Kh7 {[%emt 0:00:00]} 46. h5 {[%emt 0:00:00]} Kg8 {[%emt 0:00:00]} 47. Rd4 {[%emt 0:00:00]} Kf8 {[%emt 0:00:00]} 48. Be5 {[%emt 0:00:00]} Rc5 {[%emt 0:00:00]} 49. Bb8 {[%emt 0:00:00]} Rxh5 {[%emt 0:00:00] [#]} 50. f4 $1 {[%emt 0:00:00] Prevents Rg5+.} ({But not} 50. Bxa7 Rg5+ 51. Kh3 Rg6 $16) 50... Rc5 $2 {[%emt 0:00:00] A mistake that costs the game.} (50... Rf5 $16) 51. Bxa7 {[%emt 0:00:00]} Rc2+ {[%emt 0:00:00]} 52. Kg3 {[%emt 0:00:00]} Ke7 {[%emt 0:00:00]} (52... Rc3+ $2 53. Kg4 $18) 53. Bxb6 {[%emt 0:00:00]} Nd6 {[%emt 0:00:00] Hoping for ...Nf5+.} 54. Kh3 {[%emt 0:00:00] aiming for Ba5.} Rc3+ {[%emt 0:01:20]} (54... Ke6 {was necessary.} 55. Ba5 Rb2) 55. Kg2 {[%emt 0:00:00] And now Ba5 would win.} f5 $2 {[%emt 0:00:41]} (55... Ke6 56. Ba5 Rb3) 56. Ba5 {[%emt 0:00:00]} Rc2+ {[%emt 0:00:25]} 57. Kh3 {[%emt 0:00:00] Black must now prevent Bb4.} Nc4 {[%emt 0:02:21]} 58. Bb4+ {[%emt 0:00:00]} Ke6 {[%emt 0:00:04]} 59. b6 {[%emt 0:00:56]} Ne3 {[%emt 0:01:27]} 60. Rd2 {[%emt 0:00:43] Weighted Error Value: White=0.17 (very precise) /Black=0.32} (60. b7 $142 Nf1 {[#]} 61. Rd2 $3 {[%mdl 512]} Nxd2 62. b8=Q Nf3 63. Qd6+ Kf7 64. Qe7+ Kg6 65. Qe6+ Kg7 66. Qxf5) 1-0